{"text_format":"1","workbook":"xlsx","n_sheets":3,"sheets":["Solicitação","Equipe","Plan3"],"not_rendered":{"charts":0,"images":3,"macros":1,"external_links":0,"defined_names":2,"comments":0,"pivot_tables":0},"unopened":[],"bounds":{"document_bytes":16777216,"sheet_cells":100000,"rows_first":2000,"rows_last":500,"rows_between":2000,"halvings":0,"cell_chars":16384,"cell_head_chars":4096},"cells_cut":0,"cells_raw":0,"read":"whole","date_system":"1900"}

{"sheet":"Solicitação","index":0,"n_rows":39,"n_cols":4,"rows_kept":39,"cut":false,"hidden":false,"merged":[[32,0,32,1],[33,0,33,1],[34,0,34,1],[35,0,35,1],[18,0,19,1],[17,0,17,3],[7,1,7,3],[6,0,6,3],[11,1,11,3],[2,0,2,3],[3,0,3,3],[4,0,4,3],[13,0,13,3],[0,0,0,3],[1,0,1,3],[20,0,20,3],[37,0,37,3],[38,0,38,3],[29,0,29,3],[22,0,22,3],[23,1,23,3],[24,1,24,3],[25,1,25,3],[26,1,26,3],[30,0,30,1],[31,0,31,1]]}
["IMPORTANTE: Envie este arquivo no formato planilha por e-mail. Não o imprima!!!!"]
["Em conformidade com o disposto no Protag/PRAE, solicito o apoio para participar do evento que consta no item 4 e envio junto a este os seguintes documentos: \nb) Atestado de vínculo institucional. Este documento deverá ser enviado no formato pdf.\nc) Justificativa da relevância da atividade para a vida acadêmica. Este documento deverá ser enviado no formato pdf.\nd) Projeto contendo título da proposta, identificação da equipe, introdução, objetivos, justificativa, resultados esperados, cronograma e orçamento detalhado. Este documento deverá ser enviado no formato pdf.\ne) Folder do evento com a programação, se for o caso. Este documento deverá ser enviado no formato pdf.\nf) Carta de aceite ou manifestação da instituição de destino da importância da participação na atividade, se for o caso. Este documento deverá ser enviado no formato pdf.\ng) Para cada membro da equipe do projeto, deve-se informar se o mesmo é oriundo da rede pública de educação básica e se apresenta renda familiar bruta menor ou igual a 1,5 salários mínimos ou não. Caso apresente, o estudante deverá preencher a planilha Núcleo Familiar disponibilizada em www.prae.ufg.br, identificando-se no nome do arquivo e enviá-lo juntamente com a documentação, no formato de planilha eletrônica.\n"]
[]
["UNIVERSIDADE FEDERAL DE GOIÁS"]
["PRÓ-REITORIA DE ASSUNTOS ESTUDANTIS"]
[]
["1. Dados do Estudante Proponente:"]
["Nome:"]
["Regional:",null,"Curso:"]
["CPF:",null,"Matrícula:"]
["Carteira de identidade:",null,"Órgão Emissor:"]
["E-mail:"]
[]
["2. Dados Bancários do Estudante Proponente"]
["Banco:",null,"Operação:"]
["Agência:",null,"Conta corrente:"]
[]
["3. Perfil SocioEconomico do estudante proponente"]
["Renda bruta familiar per capita \né menor que R$ 1.405,00 (1,5 Salário mínimo)",null,"Sim\n","(          )"]
[null,null,"Não ","(            )"]
["Para o cálculo da renda bruta familiar, considera-se a soma das rendas brutas de cada participante do Núcleo Familiar, que é o conjunto composto por um ou mais familiares, que contribuem para o rendimento ou tenham as despesas atendidas por este conjunto, sendo todos moradores em um mesmo domicílio, desde que comprovada mediante documentação.  \n\nCaso a renda per capta bruta seja inferior a 1,5 sálarios mínimos, deve ser preenchido a planilha nucleo_familiar_(nome do estudante).xlsx que se encontra em www.prae.ufg.br\n\nIMPORTANTE: Se solicitada, a  documentação deverá ser enviada à PRAE."]
[]
["4. Dados da Proposta:"]
["Título:"]
["Período de Execução:"]
["Localidade/Estado:"]
["Instituições envolvidas:"]
["Equipe:","Os dados devem ser preenchidos na planilha intitulada Equipe"]
[]
["5. Resumo do Orçamento para a equipe:"]
["Descrição",null,"Solicitado","Aprovado"]
["Serviços de terceiros"]
["Transporte"]
["Hospedagem"]
["Material de Consumo"]
["Total:",null,{"$f":"SUM(C32:C35)","v":0},{"$f":"IF(C36>800,800,C36)","v":0}]
[]
["Estou ciente de que, em caso de concessão,  a não prestação de contas inviabilizará minha participação em outros eventos com o apoio do Protag/PRAE e que terei que devolver o recurso financeiro disponibilizado à UFG por meio de GRU emitida pela PROAD/UFG."]
[{"$f":"NOW()","v":"2018-09-27T11:11:06.650"}]

{"sheet":"Equipe","index":1,"n_rows":59,"n_cols":15,"rows_kept":59,"cut":false,"hidden":false,"merged":[[7,13,7,14],[2,0,2,14],[1,0,1,14],[3,0,3,14],[4,0,4,14],[5,0,5,14],[6,0,6,14],[7,0,8,0],[7,1,7,4],[7,5,7,8],[7,9,7,12]]}
[]
["IMPORTANTE: Envie este arquivo no formato planilha por e-mail. Não o imprima!!!!"]
["Para cada membro da equipe do projeto, deve-se informar se o mesmo é oriundo da rede pública de educação básica e se apresenta renda familiar bruta menor ou igual a 1,5 salários mínimos ou não. Caso apresente, o estudante deverá preencher a planilha Núcleo Familiar disponibilizada em www.prae.ufg.br, identificando-se no nome do arquivo e enviá-lo juntamente com a documentação, no formato de planilha eletrônica."]
["SERVIÇO PÚBLICO FEDERAL"]
["UNIVERSIDADE FEDERAL DE GOIÁS"]
["PRÓ-REITORIA DE ASSUNTOS ESTUDANTIS"]
[]
["Ordem","Dados Pessoais",null,null,null,"Dados Acadêmicos",null,null,null,"Dados bancários",null,null,null,"Perfil Sócio-econômico"]
[null,"Nome","CPF","Carteira Identidade","Órgão Emissor","Regional","Curso","Matrícula","E-mail","Banco","Operação ","Agência","Conta corrente","O estudante  é oriundo do ensino básico público? (S/N)","Renda bruta per capta do Núcleo Familiar"]
[1,{"$f":"Solicitação!B8","v":0},{"$f":"Solicitação!B10","v":0},{"$f":"Solicitação!B11","v":0},{"$f":"Solicitação!D11","v":0},{"$f":"Solicitação!B9","v":0},{"$f":"Solicitação!D9","v":0},{"$f":"Solicitação!D10","v":0},{"$f":"Solicitação!B12","v":0},{"$f":"Solicitação!B15","v":0},{"$f":"Solicitação!D15","v":0},{"$f":"Solicitação!B16","v":0},{"$f":"Solicitação!D16","v":0}]
[{"$f":"A10+1","v":2}]
[{"$f":"A11+1","v":3}]
[4]
[5]
[6]
[7]
[8]
[9]
[10]
[11]
[12]
[13]
[14]
[15]
[16]
[17]
[18]
[19]
[20]
[21]
[22]
[23]
[24]
[25]
[26]
[27]
[28]
[29]
[30]
[31]
[32]
[33]
[34]
[35]
[36]
[37]
[38]
[39]
[40]
[41]
[42]
[43]
[44]
[45]
[46]
[47]
[48]
[49]
[50]

{"sheet":"Plan3","index":2,"n_rows":0,"n_cols":0,"rows_kept":0,"cut":false,"hidden":false,"merged":[]}